Cogmind - Beta 16 @@@ ROGUE MODE // 2026.01.26 @ 19:05:46 Player: Artackni Result: Destroyed by S-27 Virus with Autogun Performance ------------- Evolutions (5) 2500 Regions Visited (13) 2600 Robots Destroyed (0) 0 Value Destroyed (0) 0 Prototype IDs (0) 0 Alien Tech Used (0) 0 Bonus (2138) 2138 TOTAL SCORE: 7238 Bonus ------- Pacifist 1787 Follower Combat Kills 51 Aligned with FarCom 300 Cogmind --------- Core Integrity 0/1000 Matter 300/300 Energy 99/100 System Corruption 0% Temperature Cool (0) Movement Core (50) Location -5/Factory Parts ------- > --- POWER (11) ------- (None) > --- PROPULSION (2) --- (None) > --- UTILITY (2) ------ (None) > --- WEAPON (2) ------- (None) > --- INVENTORY (5) ---- (None) Peak State ------------ > --- POWER ------------ (None) > --- PROPULSION ------- (None) > --- UTILITY ---------- (None) > --- WEAPON ----------- Backup Laser III > --- INVENTORY -------- (None) [Rating: 3] Favorites ----------- Power None Propulsion None Utility None Weapon Backup Laser III Energy Gun Backup Laser III Build | -11 -10 -10 -10 -9 -8 -8 -7 -7 -7 -6 -5 -5 -5 ------- Run | Yrd Mat Min Exi Min Mat Sto Fac Low Low Fac Fac Was Fac Slots Evolved 10 | . . . . . 4 . 2 . . 2 2 . . Power 10 | . . . . . 4 . 2 . . 2 2 . . Propulsion . | . . . . . . . . . . . . . . Utility . | . . . . . . . . . . . . . . Weapon . | . . . . . . . . . . . . . . Parts Attached . | . . . . . . . . . . . . . . Power . | . . . . . . . . . . . . . . Engine . | . . . . . . . . . . . . . . Core . | . . . . . . . . . . . . . . Reactor . | . . . . . . . . . . . . . . Propulsion . | . . . . . . . . . . . . . . Treads . | . . . . . . . . . . . . . . Leg . | . . . . . . . . . . . . . . Wheel . | . . . . . . . . . . . . . . Hover . | . . . . . . . . . . . . . . Flight . | . . . . . . . . . . . . . . Utility . | . . . . . . . . . . . . . . Device . | . . . . . . . . . . . . . . Storage . | . . . . . . . . . . . . . . Processor . | . . . . . . . . . . . . . . Hackware . | . . . . . . . . . . . . . . Protection . | . . . . . . . . . . . . . . Artifact . | . . . . . . . . . . . . . . Weapon . | . . . . . . . . . . . . . . Energy Gun . | . . . . . . . . . . . . . . Energy Cannon . | . . . . . . . . . . . . . . Ballistic Gun . | . . . . . . . . . . . . . . Ballistic Cannon . | . . . . . . . . . . . . . . Launcher . | . . . . . . . . . . . . . . Special Weapon . | . . . . . . . . . . . . . . Impact Weapon . | . . . . . . . . . . . . . . Slashing Weapon . | . . . . . . . . . . . . . . Piercing Weapon . | . . . . . . . . . . . . . . Special Melee Weapon . | . . . . . . . . . . . . . . Unidentified Prototypes . | . . . . . . . . . . . . . . Parts Lost . | . . . . . . . . . . . . . . Power . | . . . . . . . . . . . . . . Propulsion . | . . . . . . . . . . . . . . Utility . | . . . . . . . . . . . . . . Weapon . | . . . . . . . . . . . . . . Highest Loss Streak . | . . . . . . . . . . . . . . To Critical Strikes . | . . . . . . . . . . . . . . Average Backups . | . . . . . . . . . . . . . . Power . | . . . . . . . . . . . . . . Propulsion . | . . . . . . . . . . . . . . Utility . | . . . . . . . . . . . . . . Weapon . | . . . . . . . . . . . . . . Tool/Special . | . . . . . . . . . . . . . . Unused Backups . | . . . . . . . . . . . . . . Power . | . . . . . . . . . . . . . . Propulsion . | . . . . . . . . . . . . . . Utility . | . . . . . . . . . . . . . . Weapon . | . . . . . . . . . . . . . . Tool/Special . | . . . . . . . . . . . . . . Average Slot Usage (%) . | . . . . . . . . . . . . . . Peak Build Rating 3 | . . . . . . . . . . . . 3 . Average Rating . | . . . . . . . . . . . . . . On Entrance . | . . . . . . . . . . . . . . Avg Prop Armor Cover (%) . | . . . . . . . . . . . . . . Naked Turns 1422 | . 13 142 81 46 253 53 53 185 17 415 25 43 96 Heaviest Build 2 | . . . . . . . . . . . . 2 . Greatest Support 3 | 3 3 3 3 3 3 3 3 3 3 3 3 3 3 Greatest Overweight (x) . | . . . . . . . . . . . . . . Average Overweight (x) . | . . . . . . . . . . . . . . Largest Inventory Capacity 5 | 5 5 5 5 5 5 5 5 5 5 5 5 5 5 Average Capacity 5 | 5 5 5 5 5 5 5 5 5 5 5 5 5 5 Most Carried . | . . . . . . . . . . . . . . Average Carried . | . . . . . . . . . . . . . . Final Capacity 5 | 5 5 5 5 5 5 5 5 5 5 5 5 5 5 Final Carried . | . . . . . . . . . . . . . . Class Distribution -------------------- 100% | Mutant Dominant Class ---------------- Mutant | -10/Materials Mutant | -10/Mines Mutant | -10/Exiles Mutant | -9/Mines Mutant | -8/Materials Mutant | -8/Storage Mutant | -7/Factory Mutant | -7/Lower Caves Mutant | -7/Lower Caves Mutant | -6/Factory Mutant | -5/Factory Mutant | -5/Waste Mutant | -5/Factory Resources | -11 -10 -10 -10 -9 -8 -8 -7 -7 -7 -6 -5 -5 -5 ----------- Run | Yrd Mat Min Exi Min Mat Sto Fac Low Low Fac Fac Was Fac Matter Collected 200 | 200 . . . . . . . . . . . . . Remotely . | . . . . . . . . . . . . . . Salvage Created . | . . . . . . . . . . . . . . Parts . | . . . . . . . . . . . . . . Haulers Intercepted . | . . . . . . . . . . . . . . Recyclers Shooed . | . . . . . . . . . . . . . . Parts Field Recycled . | . . . . . . . . . . . . . . Retrieved Matter . | . . . . . . . . . . . . . . Parts Self-Destructed . | . . . . . . . . . . . . . . Prevented . | . . . . . . . . . . . . . . Parts Restored . | . . . . . . . . . . . . . . Kills | -11 -10 -10 -10 -9 -8 -8 -7 -7 -7 -6 -5 -5 -5 ------- Run | Yrd Mat Min Exi Min Mat Sto Fac Low Low Fac Fac Was Fac Combat Hostiles Destroyed . | . . . . . . . . . . . . . . Classes Destroyed . | . . . . . . . . . . . . . . Best Kill Streak . | . . . . . . . . . . . . . . Combat Bots Only . | . . . . . . . . . . . . . . Max Kills in Single Turn . | . . . . . . . . . . . . . . Gunslinging . | . . . . . . . . . . . . . . Exploded . | . . . . . . . . . . . . . . Melee . | . . . . . . . . . . . . . . Uniques/NPCs Destroyed . | . . . . . . . . . . . . . . Combat | -11 -10 -10 -10 -9 -8 -8 -7 -7 -7 -6 -5 -5 -5 -------- Run | Yrd Mat Min Exi Min Mat Sto Fac Low Low Fac Fac Was Fac Hostile Shots Fired 156 | . 1 9 . . 8 2 . 16 . 46 . . 74 Missed 61 | . 1 3 . . 3 2 . 9 . 14 . . 29 Hits 95 | . . 6 . . 5 . . 7 . 32 . . 45 Projectile 95 | . . 6 . . 5 . . 7 . 32 . . 45 Critical Strikes 3 | . . . . . . . . . . 1 . . 2 Damage Taken 2016 | . . 47 . . 74 . . 144 . 749 . . 1002 Core 2016 | . . 47 . . 74 . . 144 . 749 . . 1002 Absorbed by Shields . | . . . . . . . . . . . . . . Core Remaining (%) 71 | 100 . . . 81 . 86 . . 79 11 . . . Volleys Fired . | . . . . . . . . . . . . . . Largest . | . . . . . . . . . . . . . . Hottest . | . . . . . . . . . . . . . . Shots Fired . | . . . . . . . . . . . . . . Gun . | . . . . . . . . . . . . . . Cannon . | . . . . . . . . . . . . . . Launcher . | . . . . . . . . . . . . . . Special . | . . . . . . . . . . . . . . Kinetic . | . . . . . . . . . . . . . . Thermal . | . . . . . . . . . . . . . . Explosive . | . . . . . . . . . . . . . . Electromagnetic . | . . . . . . . . . . . . . . Robot Hit Streak . | . . . . . . . . . . . . . . Robot Miss Streak . | . . . . . . . . . . . . . . Penetration Max . | . . . . . . . . . . . . . . Secondary Targets . | . . . . . . . . . . . . . . Shots Hit Robots . | . . . . . . . . . . . . . . Core Hits 1 | . . . . . . . . . . . . . 1 Critical Kills . | . . . . . . . . . . . . . . Critical Parts Destroyed . | . . . . . . . . . . . . . . Critical Strikes . | . . . . . . . . . . . . . . Melee Attacks . | . . . . . . . . . . . . . . Impact . | . . . . . . . . . . . . . . Slashing . | . . . . . . . . . . . . . . Piercing . | . . . . . . . . . . . . . . Sneak Attacks . | . . . . . . . . . . . . . . Combat Hostiles . | . . . . . . . . . . . . . . Follow-up Attacks . | . . . . . . . . . . . . . . Damage Inflicted 1 | . . . . . . . . . . . . . 1 Guns . | . . . . . . . . . . . . . . Cannons . | . . . . . . . . . . . . . . Explosions . | . . . . . . . . . . . . . . Melee . | . . . . . . . . . . . . . . Ramming 1 | . . . . . . . . . . . . . 1 Kinetic . | . . . . . . . . . . . . . . Thermal . | . . . . . . . . . . . . . . Explosive . | . . . . . . . . . . . . . . Electromagnetic . | . . . . . . . . . . . . . . Impact . | . . . . . . . . . . . . . . Slashing . | . . . . . . . . . . . . . . Piercing . | . . . . . . . . . . . . . . Highest Corruption 3 | . . . . . . 3 . . . 1 . . . Average Corruption 2 | . . . . . . 2 . . . 1 . . . Corruption Purged . | . . . . . . . . . . . . . . Corruption Blocked . | . . . . . . . . . . . . . . Effects 1 | . . . . . . . . . . 1 . . . Energy Discharges 1 | . . . . . . . . . . 1 . . . Overload Shots . | . . . . . . . . . . . . . . Overflow Damage . | . . . . . . . . . . . . . . Projectiles . | . . . . . . . . . . . . . . Explosions . | . . . . . . . . . . . . . . Melee . | . . . . . . . . . . . . . . Knockbacks . | . . . . . . . . . . . . . . Impact . | . . . . . . . . . . . . . . Kinetic . | . . . . . . . . . . . . . . Secondary . | . . . . . . . . . . . . . . Self-Inflicted Damage . | . . . . . . . . . . . . . . Shots . | . . . . . . . . . . . . . . Rammed 1 | . . . . . . . . . . . . . 1 Targets Rammed 1 | . . . . . . . . . . . . . 1 Kicked . | . . . . . . . . . . . . . . Crushed . | . . . . . . . . . . . . . . Highest Temperature . | . . . . . . . . . . . . . . Average Temperature . | . . . . . . . . . . . . . . Received Heat Transfer 225 | . . . . . 18 . . 33 . 156 . . 18 Siege Activations . | . . . . . . . . . . . . . . Martial Activations . | . . . . . . . . . . . . . . Shielding Activations . | . . . . . . . . . . . . . . Robots Disrupted . | . . . . . . . . . . . . . . Combat Hostiles . | . . . . . . . . . . . . . . Robots Corrupted . | . . . . . . . . . . . . . . Combat Hostiles . | . . . . . . . . . . . . . . Parts Fried . | . . . . . . . . . . . . . . Impact Corruptions . | . . . . . . . . . . . . . . Robots Melted . | . . . . . . . . . . . . . . Combat Hostiles . | . . . . . . . . . . . . . . Parts Melted . | . . . . . . . . . . . . . . Heat Transferred . | . . . . . . . . . . . . . . Parts Sabotaged . | . . . . . . . . . . . . . . Parts Stolen . | . . . . . . . . . . . . . . Parts Stripped . | . . . . . . . . . . . . . . Power Chain Reactions . | . . . . . . . . . . . . . . Alert | -11 -10 -10 -10 -9 -8 -8 -7 -7 -7 -6 -5 -5 -5 ------- Run | Yrd Mat Min Exi Min Mat Sto Fac Low Low Fac Fac Was Fac Maximum Alert Level . | . . . . . . . . . . . . . . Low Security (%) 100 | 100 100 100 . 100 100 100 100 . . 100 100 100 100 Level 1 . | . . . . . . . . . . . . . . Level 2 . | . . . . . . . . . . . . . . Level 3 . | . . . . . . . . . . . . . . Level 4 . | . . . . . . . . . . . . . . Level 5 . | . . . . . . . . . . . . . . High Security . | . . . . . . . . . . . . . . Max Security . | . . . . . . . . . . . . . . Peak Influence 86 | . . 42 . . 45 15 6 . . 15 . . 86 Initial 11 | . . . . . . . 6 . . 11 . . . Average 9 | . . 5 . . 15 3 2 . . 1 . . 54 Influence Increases 378 | . . 42 . . 75 15 . 45 . 35 . . 166 Destroy 0b10 Robot/C 140 | . . 40 . . . . . . . . . . 100 Destroy 0b10 Robot/NC 5 | . . . . . . . . . . . . . 5 Destroy Leader 12 | . . . . . . . . . . . . . 12 Allied During Kill 19 | . . 2 . . . . . . . . . . 17 Successful Hack 5 | . . . . . . . . . . 5 . . . Destroy Structure 2 | . . . . . . . . . . . . . 2 Partial Spotted 15 | . . . . . . 15 . . . . . . . Lose Combat Pursuer 180 | . . . . . 75 . . 45 . 30 . . 30 Influence Decreases 292 | . . 10 32 . 75 . 15 20 6 54 . . 80 Entered New Map 55 | . . . 32 . . . 9 . 6 8 . . . Time Decay 197 | . . 10 . . 75 . 6 20 . 46 . . 40 Lost Ally 40 | . . . . . . . . . . . . . 40 Squads Dispatched 9 | . . . . . 1 . . . . 5 . . 3 Investigation 2 | . . . . . 1 . . . . 1 . . . Extermination 2 | . . . . . . . . . . 2 . . . Reinforcement 4 | . . . . . . . . . . 2 . . 2 Assault . | . . . . . . . . . . . . . . Garrison 1 | . . . . . . . . . . . . . 1 Intercept . | . . . . . . . . . . . . . . Searches Triggered . | . . . . . . . . . . . . . . Construction Impeded . | . . . . . . . . . . . . . . Haulers Reinforced . | . . . . . . . . . . . . . . Active Scanning Responses . | . . . . . . . . . . . . . . Cargo Convoy Interrupts . | . . . . . . . . . . . . . . Stealth | -11 -10 -10 -10 -9 -8 -8 -7 -7 -7 -6 -5 -5 -5 --------- Run | Yrd Mat Min Exi Min Mat Sto Fac Low Low Fac Fac Was Fac Distress Signals 2 | . . . . . . . . . . 2 . . . Communications Jammed . | . . . . . . . . . . . . . . Distress Signals . | . . . . . . . . . . . . . . Times Spotted 42 | . 2 3 . . 4 2 . 4 . 13 . . 14 Peak Tracking Total 10 | . 2 3 . . 5 1 . 4 . 9 . . 10 Tactical Retreats 8 | . . . . . 3 . . 2 . 2 . . 1 Traps | -11 -10 -10 -10 -9 -8 -8 -7 -7 -7 -6 -5 -5 -5 ------- Run | Yrd Mat Min Exi Min Mat Sto Fac Low Low Fac Fac Was Fac Traps Triggered 7 | . . . . . . 2 . . . 2 1 . 2 Indirectly . | . . . . . . . . . . . . . . Trap Hack Attempts . | . . . . . . . . . . . . . . Triggered . | . . . . . . . . . . . . . . Disarmed . | . . . . . . . . . . . . . . Reprogrammed . | . . . . . . . . . . . . . . Reused . | . . . . . . . . . . . . . . Traps Extracted . | . . . . . . . . . . . . . . Installed . | . . . . . . . . . . . . . . Triggered . | . . . . . . . . . . . . . . Machines | -11 -10 -10 -10 -9 -8 -8 -7 -7 -7 -6 -5 -5 -5 ---------- Run | Yrd Mat Min Exi Min Mat Sto Fac Low Low Fac Fac Was Fac Machines Disabled . | . . . . . . . . . . . . . . Max in Single Turn . | . . . . . . . . . . . . . . Machines Repaired . | . . . . . . . . . . . . . . Machines Dismantled . | . . . . . . . . . . . . . . Machines Sabotaged . | . . . . . . . . . . . . . . Overloaded Fab Kills . | . . . . . . . . . . . . . . Hacking | -11 -10 -10 -10 -9 -8 -8 -7 -7 -7 -6 -5 -5 -5 --------- Run | Yrd Mat Min Exi Min Mat Sto Fac Low Low Fac Fac Was Fac Machines Accessed 6 | . . . . . 3 . 1 . . 2 . . . Terminals 6 | . . . . . 3 . 1 . . 2 . . . Fabricators . | . . . . . . . . . . . . . . Repair Stations . | . . . . . . . . . . . . . . Recycling Units . | . . . . . . . . . . . . . . Scanalyzers . | . . . . . . . . . . . . . . Garrison Access . | . . . . . . . . . . . . . . Total Hacks 13 | . . . . . 8 . 2 . . 3 . . . Successful 2 | . . . . . 1 . . . . 1 . . . Failed 11 | . . . . . 7 . 2 . . 2 . . . Catastrophic 2 | . . . . . 1 . 1 . . . . . . Database Lockouts . | . . . . . . . . . . . . . . Manual 8 | . . . . . 4 . 2 . . 2 . . . Terminals 13 | . . . . . 8 . 2 . . 3 . . . Fabricators . | . . . . . . . . . . . . . . Repair Stations . | . . . . . . . . . . . . . . Recycling Units . | . . . . . . . . . . . . . . Scanalyzers . | . . . . . . . . . . . . . . Garrison Access . | . . . . . . . . . . . . . . Terminal Hacks 2 | . . . . . 1 . . . . 1 . . . Open DSF 1 | . . . . . . . . . . 1 . . . Emergency Access Points 1 | . . . . . 1 . . . . . . . . Fabricator Hacks . | . . . . . . . . . . . . . . Repair Station Hacks . | . . . . . . . . . . . . . . Recycling Unit Hacks . | . . . . . . . . . . . . . . Scanalyzer . | . . . . . . . . . . . . . . Garrison Access Hacks . | . . . . . . . . . . . . . . Unauthorized Hacks . | . . . . . . . . . . . . . . Terminals . | . . . . . . . . . . . . . . Fabricators . | . . . . . . . . . . . . . . Repair Stations . | . . . . . . . . . . . . . . Recycling Units . | . . . . . . . . . . . . . . Scanalyzers . | . . . . . . . . . . . . . . Garrison Access . | . . . . . . . . . . . . . . Data Cores Recovered . | . . . . . . . . . . . . . . Used . | . . . . . . . . . . . . . . Hacking Detections 5 | . . . . . 3 . 1 . . 1 . . . Full Trace Events 1 | . . . . . 1 . . . . . . . . Feedback Events . | . . . . . . . . . . . . . . Feedback Blocked . | . . . . . . . . . . . . . . Robot Schematics Acquired . | . . . . . . . . . . . . . . Robots Built . | . . . . . . . . . . . . . . Authchips . | . . . . . . . . . . . . . . Time . | . . . . . . . . . . . . . . Total Robot Build Rating . | . . . . . . . . . . . . . . Part Schematics Acquired . | . . . . . . . . . . . . . . Parts Built . | . . . . . . . . . . . . . . Authchips . | . . . . . . . . . . . . . . Time . | . . . . . . . . . . . . . . Total Part Build Rating . | . . . . . . . . . . . . . . Part Studies Acquired . | . . . . . . . . . . . . . . Parts Repaired . | . . . . . . . . . . . . . . Time . | . . . . . . . . . . . . . . Parts Recycled . | . . . . . . . . . . . . . . Recycled Matter . | . . . . . . . . . . . . . . Retrieved Matter . | . . . . . . . . . . . . . . Retrieved Components . | . . . . . . . . . . . . . . Parts Scanalyzed . | . . . . . . . . . . . . . . Part Schematics Acquired . | . . . . . . . . . . . . . . Parts Damaged . | . . . . . . . . . . . . . . Bothacking | -11 -10 -10 -10 -9 -8 -8 -7 -7 -7 -6 -5 -5 -5 ------------ Run | Yrd Mat Min Exi Min Mat Sto Fac Low Low Fac Fac Was Fac Used RIF Installer . | . . . . . . . . . . . . . . Robots Hacked . | . . . . . . . . . . . . . . Non-combat . | . . . . . . . . . . . . . . Combat . | . . . . . . . . . . . . . . Robot Hacks Applied . | . . . . . . . . . . . . . . Relay Couplers Released . | . . . . . . . . . . . . . . Fabnet Peak Effective % . | . . . . . . . . . . . . . . Robots Rewired . | . . . . . . . . . . . . . . Allies Hacked . | . . . . . . . . . . . . . . Hacks Repelled . | . . . . . . . . . . . . . . Allies | -11 -10 -10 -10 -9 -8 -8 -7 -7 -7 -6 -5 -5 -5 -------- Run | Yrd Mat Min Exi Min Mat Sto Fac Low Low Fac Fac Was Fac Total Allies 21 | . . 1 . . . . . . . . . 20 . Largest Group 20 | . . 1 . . . . . . . . . 20 4 Highest-Rated Group 766 | . . 31 . . . . . . . . . 766 100 Highest-Rated Ally 50 | . . 31 . . . . . . . . . 50 25 Total Orders . | . . . . . . . . . . . . . . Ally Attacks 92 | . . 6 . . . . . . . . . . 86 Total Damage 1201 | . . 61 . . . . . . . . . . 1140 Kills 8 | . . 2 . . . . . . . . . . 6 Allies Corrupted 1 | . . . . . . . . . . . . . 1 Allies Melted . | . . . . . . . . . . . . . . Intel | -11 -10 -10 -10 -9 -8 -8 -7 -7 -7 -6 -5 -5 -5 ------- Run | Yrd Mat Min Exi Min Mat Sto Fac Low Low Fac Fac Was Fac Active Infowar (turns) . | . . . . . . . . . . . . . . Robot Analysis Total . | . . . . . . . . . . . . . . Derelict Logs Recovered 3 | . . 2 . 1 . . . . . . . . . Drone Launches . | . . . . . . . . . . . . . . Drone Recoveries . | . . . . . . . . . . . . . . Exploration | -11 -10 -10 -10 -9 -8 -8 -7 -7 -7 -6 -5 -5 -5 ------------- Run | Yrd Mat Min Exi Min Mat Sto Fac Low Low Fac Fac Was Fac Turns Passed 1437 | 12 13 142 81 46 253 53 53 185 17 415 25 46 96 Spaces Moved 2599 | 24 25 283 161 92 399 105 105 370 34 673 49 90 189 Core 2599 | 24 25 283 161 92 399 105 105 370 34 673 49 90 189 Treads . | . . . . . . . . . . . . . . Legs . | . . . . . . . . . . . . . . Wheels . | . . . . . . . . . . . . . . Hover . | . . . . . . . . . . . . . . Flight . | . . . . . . . . . . . . . . Fastest Speed 50 | 50 50 50 50 50 50 50 50 50 50 50 50 50 50 Average Speed 50 | 50 50 50 50 50 50 50 50 50 50 50 50 50 50 Slowest Speed 50 | 50 50 50 50 50 50 50 50 50 50 50 50 50 50 Overloaded Moves . | . . . . . . . . . . . . . . Propulsion Burnouts . | . . . . . . . . . . . . . . Robots Hopped . | . . . . . . . . . . . . . . Potential Cave-ins . | . . . . . . . . . . . . . . Cave-ins Triggered . | . . . . . . . . . . . . . . Exploration Rate (%) 29 | 3 15 69 57 36 26 21 5 65 9 16 2 76 10 Regions Visited 13 Branch Regions 6 Pre-discovered Areas . | . . . . . . . . . . . . . . Known Exits Taken . | . . . . . . . . . . . . . . Unknown Exits Taken 11 | 1 1 1 1 1 1 1 1 1 1 1 . . . Scrap Searched . | . . . . . . . . . . . . . . Spaces Dug . | . . . . . . . . . . . . . . Terrain Destroyed . | . . . . . . . . . . . . . . Melee . | . . . . . . . . . . . . . . Projectile . | . . . . . . . . . . . . . . AOE . | . . . . . . . . . . . . . . Terrain Rammed . | . . . . . . . . . . . . . . Walls Destroyed . | . . . . . . . . . . . . . . Machines Disabled . | . . . . . . . . . . . . . . Actions | -11 -10 -10 -10 -9 -8 -8 -7 -7 -7 -6 -5 -5 -5 --------- Run | Yrd Mat Min Exi Min Mat Sto Fac Low Low Fac Fac Was Fac Total 2721 | 23 24 282 160 91 451 104 104 369 33 750 49 91 190 Wait 131 | . . . . . 53 . . . . 78 . . . Move 2587 | 23 24 282 160 91 398 104 104 369 33 672 49 89 189 Hop . | . . . . . . . . . . . . . . Pick Up . | . . . . . . . . . . . . . . Fast Attach . | . . . . . . . . . . . . . . Attach . | . . . . . . . . . . . . . . Detach 1 | . . . . . . . . . . . . 1 . Swap . | . . . . . . . . . . . . . . Drop 1 | . . . . . . . . . . . . 1 . Fire . | . . . . . . . . . . . . . . Melee . | . . . . . . . . . . . . . . Ram 1 | . . . . . . . . . . . . . 1 Kick . | . . . . . . . . . . . . . . Crush . | . . . . . . . . . . . . . . Escape Stasis . | . . . . . . . . . . . . . . Rewire . | . . . . . . . . . . . . . . Trap . | . . . . . . . . . . . . . . Miscellaneous . | . . . . . . . . . . . . . . Route ------- -11/Scrapyard -10/Materials -10/Mines (discovered 2 exits: Mat / [*Exi]) -10/Exiles -9/Mines -8/Materials -8/Storage -7/Factory -7/Lower Caves -7/Lower Caves -6/Factory -5/Factory -5/Waste -5/Factory History --------- Turn | Location | Event 3 | -11/Scrapyard | Discovered new exit (range 15) 13 | -11/Scrapyard | Entered Materials 18 | -10/Materials | Discovered new exit (range 15) 26 | -10/Materials | Entered Mines 29 | -10/Mines | Received a Mining Laser from a helpful Derelict 30 | -10/Mines | Learned Materials trap positions 127 | -10/Mines | Identified exit to Materials 165 | -10/Mines | Deemed a non-threat by the Exiles lab entrance 166 | -10/Mines | Discovered new exit (range 5) 168 | -10/Mines | Entered Exiles 181 | -10/Exiles | Met 8R-AWN 190 | -10/Exiles | Met EX-HEX 203 | -10/Exiles | Met EX-BIN 210 | -10/Exiles | Aligned with FarCom system 211 | -10/Exiles | Given EX-Vault access code 225 | -10/Exiles | Met EX-DEC 243 | -10/Exiles | Discovered new exit (range 14) 249 | -10/Exiles | Entered Mines 280 | -9/Mines | Learned Materials stockpile data 290 | -9/Mines | Discovered new exit (range 13) 295 | -9/Mines | Entered Materials 295 | -8/Materials | Evolved 4 slots: Power x4 296 | -8/Materials | Loaded intel: 15 trap records 305 | -8/Materials | Build established: Mutant 540 | -8/Materials | Discovered new exit (range 16) 548 | -8/Materials | Entered Storage 598 | -8/Storage | Discovered new exit (range 6) 601 | -8/Storage | Entered Factory 601 | -7/Factory | Evolved 2 slots: Power x2 648 | -7/Factory | Discovered new exit (range 5) 654 | -7/Factory | Entered Lower Caves 655 | -7/Lower Caves | Encountered a Warlord checkpoint 749 | -7/Lower Caves | Spotted B-75 Beast 832 | -7/Lower Caves | Discovered new exit (range 16) 839 | -7/Lower Caves | Entered another Lower Caves area 848 | -7/Lower Caves | Discovered new exit (range 15) 856 | -7/Lower Caves | Entered Factory 856 | -6/Factory | Evolved 2 slots: Power x2 1240 | -6/Factory | Core integrity fell below 50% 1265 | -6/Factory | Core integrity fell below 20% 1268 | -6/Factory | Discovered new exit (range 6) 1271 | -6/Factory | Entered another Factory area 1271 | -5/Factory | Evolved 2 slots: Power x2 1296 | -5/Factory | Sucked down chute 1296 | -5/Factory | Entered Waste 1297 | -5/Waste | Joined by Warlord forces that had cleared the area 1338 | -5/Waste | Discovered new exit (range 10) 1342 | -5/Waste | Entered Factory 1342 | -5/Factory | Accompanied by 4 allies 1345 | -5/Factory | Garrison activated, responded to threat 1413 | -5/Factory | Core integrity fell below 50% 1425 | -5/Factory | Core integrity fell below 20% 1438 | -5/Factory | Destroyed by S-27 Virus with Autogun Last Messages --------------- 01351_ W-25 Informer destroyed. 01373_ Triggered Ambush Trap. 01373_ B-60 Warrior emerges from a hatch in the floor. 01373_ S-27 Virus emerges from a hatch in the floor. 01373_ G-50 Soldier emerges from a hatch in the floor. 01379_ U-05 Engineer lays Concrete. 01398_ C-30 ARC bursts open, deploying its payload. 01398_ S-27 Virus unfolds itself. 01404_ Slammed into S-27 Virus. 01413_ Knocked back. 01422_ Penetrated by Slug. 01422_ Knocked back. 01423_ K-01 Serf cleans the DSF Access. 01423_ O-24 Administrator: "IFF HANDSHAKE FAILED. SECURING TERMINAL." 01426_ S-27 Virus destroyed. 01432_ K-01 Serf cleans the Neutrino Reactor. 01433_ ALERT: Hostiles spotted, dispatching reinforcements to Terminal F001. 01435_ Triggered Blade Trap. 01435_ Massive razor-sharp blades shoot up from within the floor. Map ----- +----------------------------------------------------+ | ?????????????????????????????????????????????????? | | ?????????????????????????????????????????????????? | | ?????????????????????????????????????????????????? | | ?????????????????????????????????????????????????? | | ?????????????????????????????????????????????????? | | ?????????????????????????????????????????????????? | | ?????????????????????????????????????????????????? | | ?????????????????????????????????????????????????? | | ?????????????????????????????????????????????????? | | ?????????????????????????????????????????????????? | | ??????? ?????????????????????????????????????????? | | ??????? ????????????????????????????????????????? | | ???????#/#???????????????????????????????????????? | | ???""??# #???????????????????????????????????????? | | ??"T"### ####+#+####+#???????????????????????????? | | ??? #???????????????????????????? | | #???????????????????????????? | | """" #???????????????????????????? | | ""T"" #???????????????????????????? | | "" #???????????????????????????? | | "" """ """ """ ##########??????????????????? | | "" [ """ """ """ +??????????????????? | | "" """ """ """ #????????????????????? | | #????????????????????? | | p s #????????????????????? | | ## s s s @ #????????????????????? | | ?# #################+#########???????????????? | | ?# #????????????# !#???????????????? | | ?# #?#####????Y?# """ """ #???????????????? | | ?# # ???????# """ """ #???????????????? | | ?# # """""""????# """ """ #???????????????? | | ?# " ??# #???????????????? | | ?# % # ??# """ """ ????????????????? | | ?# # ???# """ """ ??????????????????? | | ##% #? ??????"" """????????????????????? | | #=% #?* ??????? ?????????????????????? | | #T #? ??????? ??????????????????????? | | ## # ?????? ??????????????????????? | | #" + ?????? ??????????????????????? | | ## # ??????###??????????????????????? | | ?# #? ????????????????????????????????? | | ## ##?#######????????????????????????????????? | | # #????????????????????????????????????????? | | # #????????????????????????????????????????? | | #????????????????????????????????????????? | | +????????????????????????????????????????? | | #????????????????????????????????????????? | | # #????????????????????????????????????????? | | # #????????????????????????????????????????? | | ###### ##????????????????????????????????????????? | +----------------------------------------------------+ Best States ------------- Heat Dissipation 40 Energy Generation 5 Energy Capacity 100 Matter Stores 300 Matter Capacity 300 Sight Range 16 Terrain Scan Density 10 Evasion (%) 50 Item Schematics ----------------- None Robot Schematics ------------------ None Fabricated ------------ Nothing Repaired ---------- Nothing Studied --------- None Alien Tech Used ----------------- None Achievements -------------- Streaker Challenges ------------ None Game ------ Seed SensorBattleArchive Manual? 0 Play Time 00:17:35 Cumulative 104.0 hours Start 2026.01.26 @ 18:47:48 End 2026.01.26 @ 19:05:46 Sessions 1 Manual Loads 0 Difficulty Rogue Special Mode None Game No. 43 Rogue 43 Adventurer 0 Explorer 0 Win Type - Total 5 Types 4/0/1/0/0/0/0/0/0/0 Lore% 52 Gallery% 55 Achievement% 47 Wizard Run 0 Options --------- Layout 0 ASCII 0 Keyboard 1 Movement Arrows Keybinds 0 Fullscreen 1 Font 18/SmallcapsGlow Map View 76x50 Zoom Use 0% Tactical HUD 1 Map Filters NONE Filters NONE Steam 1 RUN: 154d6c39-001a-4972-8ee5-1cfe959c83d1